fUSD/lending_fUSD_20260130
["ID","MTS","AMOUNT","RATE_DAILY","PERIOD"]
[404075797,1769789440594,-343.88268804,0.00015899,2]
[404075798,1769789440604,-150.0,0.00015935,2]
[404075799,1769789440615,-150.0,0.00015935,2]
[404075800,1769789440624,-500.0,0.00015935,2]
[404075801,1769789440634,-150.0,0.00015935,2]
[404075802,1769789440645,-150.0,0.00015935,2]
[404075803,1769789440655,-500.0,0.00015935,2]
[404075804,1769789440665,-500.0,0.00015935,2]
[404075805,1769789440675,-150.0,0.00015935,2]
[404075806,1769789440685,-150.67479101,0.00015935,2]
[404075807,1769789440695,-150.0,0.00015935,2]
[404075808,1769789440706,-150.0,0.00015935,2]
[404075809,1769789440716,-500.0,0.00015935,2]
[404075810,1769789440727,-500.0,0.00015935,2]
[404075811,1769789440737,-235.48882472,0.0001595,2]
[404075812,1769789440746,-652.99854233,0.0001596,2]
[404075813,1769789440756,-4475.0788,0.00015973,2]
[404075814,1769789440766,-9463.69094853,0.00015989,2]
[404075815,1769789440776,-200.0,0.00015989,2]
[404075816,1769789440786,-500.0,0.00015989,2]
[404075817,1769789440795,-200.0,0.00015989,2]
[404075818,1769789440805,-151.0,0.00015989,2]
[404075819,1769789440815,-151.0,0.00015989,2]
[404075820,1769789440824,-151.0,0.00015989,2]
[404075821,1769789440834,-151.0,0.00015989,2]
[404075822,1769789440843,-151.0,0.00015989,2]
[404075823,1769789440853,-151.0,0.00015989,2]
[404075824,1769789440862,-151.0,0.00015989,2]
[404075825,1769789440881,-151.0,0.00015989,2]
[404075826,1769789440891,-151.0,0.00015989,2]
[404075827,1769789440902,-151.0,0.00015989,2]
[404075828,1769789440911,-151.0,0.00015989,2]
[404075829,1769789440921,-150.8141651,0.0001599,2]
[404075830,1769789440931,-150.0,0.0001599,2]
[404075831,1769789440940,-500.0,0.0001599,2]
[404075832,1769789440950,-150.0,0.0001599,2]
[404075833,1769789440959,-150.0,0.0001599,2]
[404075834,1769789440969,-500.0,0.0001599,2]
[404075835,1769789440980,-500.0,0.0001599,2]
[404075836,1769789440990,-150.0,0.0001599,2]
[404075837,1769789441000,-150.0,0.0001599,2]
[404075838,1769789441010,-572.18032737,0.0001599,2]
[404075839,1769789441020,-500.0,0.0001599,2]
[404075840,1769789441029,-500.0,0.0001599,2]
[404075841,1769789441039,-151.0,0.00015999,2]
[404075842,1769789441049,-151.0,0.00015999,2]
[404075843,1769789441059,-353.73724505,0.00016045,2]
[404075844,1769789441068,-150.0,0.00016045,2]
[404075845,1769789441078,-150.0,0.00016045,2]
[404075846,1769789441088,-150.0,0.00016045,2]
[404075847,1769789441098,-500.0,0.00016045,2]
[404075848,1769789441107,-500.0,0.00016045,2]
[404075849,1769789441117,-150.0,0.00016045,2]
[404075850,1769789441126,-150.0,0.00016045,2]
[404075851,1769789441136,-500.0,0.00016045,2]
[404075852,1769789441147,-3325.66388888,0.00016057,2]
[404075853,1769789441157,-150.0,0.00016099,2]
[404075854,1769789441167,-150.0,0.00016099,2]
[404075855,1769789441177,-500.0,0.00016099,2]
[404075856,1769789441187,-500.0,0.00016099,2]
[404075857,1769789441197,-150.0,0.00016099,2]
[404075858,1769789441207,-150.0,0.00016099,2]
[404075859,1769789441216,-150.0,0.00016099,2]
[404075860,1769789441226,-5976.7815335,0.000161,2]
[404075861,1769789441686,-636.88341082,0.00016101,2]
[404075862,1769789441698,-3404.72,0.00016116,2]
[404075863,1769789441709,-150.0,0.00016154,2]
[404075864,1769789441718,-150.0,0.00016154,2]
[404075865,1769789441729,-500.0,0.00016154,2]
[404075866,1769789441739,-500.0,0.00016154,2]
[404075867,1769789441749,-280.11730134,0.00016154,2]
[404075868,1769789441758,-150.0,0.00016154,2]
[404075869,1769789441768,-1927.0,0.00016171,2]
[404075870,1769789441778,-200.0,0.00016209,2]
[404075871,1769789441788,-171.51596019,0.00016209,2]
[404075872,1769789441798,-572.0,0.00016209,2]
[404075873,1769789441808,-351.8353746,0.00016209,2]
[404075874,1769789441818,-250.0,0.00016209,2]
[404075875,1769789441828,-933.99864247,0.00016213,2]
[404075876,1769789441838,-9463.69094853,0.00016228,2]
[404075877,1769789441847,-1134.55,0.00016272,2]
[404075878,1769789441857,-376.11,0.00016339,2]
[404075879,1769789441867,-402.56767652,0.00016341,2]
[404075880,1769789441876,-3325.66388888,0.00016364,2]
[404075881,1769789441886,-500.0,0.00016372,2]
[404075882,1769789441897,-500.0,0.00016372,2]
[404075883,1769789441907,-500.0,0.00016372,2]
[404075884,1769789441917,-500.0,0.00016372,2]
[404075885,1769789441926,-500.0,0.00016372,2]
[404075886,1769789441936,-500.0,0.00016372,2]
[404075887,1769789441946,-500.0,0.00016372,2]
[404075888,1769789441955,-420.37327916,0.00016372,2]
[404075889,1769789441965,-500.0,0.00016372,2]
[404075890,1769789441974,-500.0,0.00016372,2]
[404075891,1769789441984,-500.0,0.00016373,2]
[404075892,1769789441993,-177.64323639,0.00016373,2]
[404075893,1769789442003,-500.0,0.00016373,2]
[404075894,1769789442013,-500.0,0.00016373,2]
[404075895,1769789442023,-500.0,0.00016373,2]
[404075896,1769789442033,-225.37911043,0.00016373,2]
[404075897,1769789442047,-500.0,0.00016373,2]
[404075898,1769789442058,-568.87365999,0.00016373,2]
[404075899,1769789442068,-500.0,0.00016373,2]
[404075900,1769789442077,-160.21744138,0.00016373,2]
[404075901,1769789442088,-500.0,0.00016373,2]
[404075902,1769789442098,-500.0,0.00016373,2]
[404075903,1769789442109,-500.0,0.00016373,2]
[404075904,1769789442119,-500.0,0.00016373,2]
[404075905,1769789442128,-558.9380785,0.00016373,2]
[404075906,1769789442139,-164.62391136,0.00016373,2]
[404075907,1769789442154,-500.0,0.00016373,2]
[404075908,1769789442163,-500.0,0.00016373,2]
[404075909,1769789442173,-160.21943413,0.00016373,2]
[404075910,1769789442183,-160.32431704,0.00016373,2]
[404075911,1769789442194,-500.0,0.00016373,2]
[404075912,1769789442205,-500.0,0.00016373,2]
[404075913,1769789442215,-217.57575976,0.00016373,2]
[404075914,1769789442224,-239.55126374,0.00016373,2]
[404075915,1769789442234,-500.0,0.00016373,2]
[404075916,1769789442244,-166.21493216,0.00016373,2]
[404075917,1769789442254,-500.0,0.00016373,2]
[404075918,1769789442263,-500.0,0.00016373,2]
[404075919,1769789442273,-500.0,0.00016373,2]
[404075920,1769789442284,-500.0,0.00016373,2]
[404075921,1769789442293,-500.0,0.00016373,2]
[404075922,1769789442303,-500.60369246,0.00016373,2]
[404075923,1769789442313,-500.0,0.00016373,2]
[404075924,1769789442324,-500.0,0.00016373,2]
[404075925,1769789442334,-500.0,0.00016373,2]
[404075926,1769789442343,-500.0,0.00016373,2]
[404075927,1769789442353,-500.0,0.00016373,2]
[404075928,1769789442363,-163.00594696,0.00016373,2]
[404075929,1769789442373,-500.0,0.00016373,2]
[404075930,1769789442382,-500.0,0.00016373,2]
[404075931,1769789442392,-500.0,0.00016373,2]
[404075932,1769789442405,-169.60462217,0.00016373,2]
[404075933,1769789442415,-500.0,0.00016373,2]
[404075934,1769789442425,-500.0,0.00016373,2]
[404075935,1769789442439,-503.15498018,0.00016373,2]
[404075936,1769789442448,-500.0,0.00016373,2]
[404075937,1769789442457,-500.0,0.00016373,2]
[404075938,1769789442469,-500.0,0.00016373,2]
[404075939,1769789442480,-500.0,0.00016373,2]
[404075940,1769789442489,-500.0,0.00016373,2]
[404075941,1769789442499,-536.50877388,0.0001641,2]
[404075942,1769789442510,-600.36026673,0.00016438,2]
[404075943,1769789442521,-500.0,0.00016438,2]
[404075944,1769789442531,-500.0,0.00016438,2]
[404075945,1769789442541,-500.0,0.00016438,2]
[404075946,1769789442552,-500.0,0.00016438,2]
[404075947,1769789442562,-500.0,0.00016438,2]
[404075948,1769789442572,-500.0,0.00016438,2]
[404075949,1769789442582,-500.0,0.00016438,2]
[404075950,1769789442592,-500.0,0.00016438,2]
[404075951,1769789442602,-355.69824752,0.00016438,2]
[404075952,1769789442612,-500.0,0.00016438,2]
[404075953,1769789442622,-500.0,0.00016438,2]
[404075954,1769789442631,-500.0,0.00016438,2]
[404075955,1769789442642,-500.0,0.00016438,2]
[404075956,1769789442654,-463.27842727,0.00016438,2]
[404075957,1769789442664,-9463.69094853,0.00016467,2]
[404075958,1769789442674,-772.81,0.00016488,2]
[404075959,1769789442684,-1249.9,0.00016506,2]
[404075960,1769789442696,-244.43530043,0.00016537,2]
[404075961,1769789442706,-1134.55,0.00016546,2]
[404075962,1769789442717,-5976.7815335,0.0001655,2]
[404075963,1769789442727,-420.0,0.0001663,2]
[404075964,1769789442737,-3325.66388888,0.00016671,2]
[404075965,1769789442747,-9463.69094853,0.00016706,2]
[404075966,1769789442757,-1680.0,0.00016715,2]
[404075967,1769789442767,-510.0,0.00016728,2]
[404075968,1769789442777,-772.81,0.00016762,2]
[404075969,1769789442787,-933.99864247,0.00016775,2]
[404075970,1769789442797,-1134.55,0.0001682,2]
[404075971,1769789442807,-504.68661395,0.00016921,2]
[404075972,1769789442817,-500.0,0.00016921,2]
[404075973,1769789442827,-1000.0,0.00016921,2]
[404075974,1769789442837,-1000.0,0.00016921,2]
[404075975,1769789442847,-500.86269689,0.00016921,2]
[404075976,1769789442857,-1000.0,0.00016921,2]
[404075977,1769789442868,-541.28684359,0.00016921,2]
[404075978,1769789442878,-1000.0,0.00016921,2]
[404075979,1769789442889,-500.4902994,0.00016921,2]
[404075980,1769789442899,-503.09870012,0.00016921,2]
[404075981,1769789442910,-1000.0,0.00016921,2]
[404075982,1769789442920,-500.0,0.00016921,2]
[404075983,1769789442930,-1000.0,0.00016921,2]
[404075984,1769789442940,-1000.0,0.00016921,2]
[404075985,1769789442951,-1000.0,0.00016921,2]
[404075986,1769789442960,-1000.0,0.00016921,2]
[404075987,1769789442970,-1000.0,0.00016921,2]
[404075988,1769789442981,-459.6118856,0.00016921,2]
[404075989,1769789442991,-490.28446551,0.00016921,2]
[404075990,1769789443001,-1000.0,0.00016921,2]
[404075991,1769789443011,-1000.79205538,0.00016921,2]
[404075992,1769789443020,-1000.0,0.00016921,2]
[404075993,1769789443030,-203.98074386,0.00016921,2]
[404075994,1769789443039,-804.05633745,0.00016921,2]
[404075995,1769789443048,-1000.0,0.00016921,2]
[404075996,1769789443057,-1000.28855452,0.00016921,2]
[404075997,1769789443067,-1000.91709451,0.00016921,2]
[404075998,1769789443076,-1000.0,0.00016921,2]
[404075999,1769789443086,-1009.36195064,0.00016921,2]
[404076000,1769789443095,-1000.0,0.00016921,2]
[404076001,1769789443104,-1000.0,0.00016921,2]
[404076002,1769789443114,-401.53067419,0.00016921,2]
[404076003,1769789443123,-877.26188408,0.00016921,2]
[404076004,1769789443133,-1000.81154381,0.00016921,2]
[404076005,1769789443142,-235.48882472,0.00016925,2]
[404076006,1769789443153,-9463.69094853,0.00016944,2]
[404076007,1769789443163,-3325.66388888,0.00016979,2]
[404076008,1769789443172,-5976.7815335,0.00017,2]
[404076009,1769789443182,-772.81,0.00017036,2]
[404076010,1769789443191,-1134.55,0.00017094,2]
[404076011,1769789443201,-3325.66388888,0.00017286,2]
[404076012,1769789443210,-772.81,0.0001731,2]
[404076013,1769789443220,-250.0,0.00017357,2]
[404076014,1769789443230,-201.51506654,0.00017357,2]
[404076015,1769789443239,-2833.0,0.0001736,2]
[404076016,1769789443249,-1134.55,0.00017368,2]
[404076017,1769789443258,-153.53,0.000174,2]
[404076018,1769789443267,-53781.3206542,0.00017441,2]
[404076019,1769789443277,-5976.7815335,0.0001745,2]
[404076020,1769789443287,-580.80754144,0.00017468,2]
[404076021,1769789443296,-1500.0,0.00017468,2]
[404076022,1769789443305,-1500.0,0.00017468,2]
[404076023,1769789443315,-377.4,0.00017468,2]
[404076024,1769789443324,-1505.10384072,0.00017468,2]
[404076025,1769789443334,-656.65111135,0.00017468,2]
[404076026,1769789443343,-1500.0,0.00017468,2]
[404076027,1769789443353,-1000.71065871,0.00017468,2]
[404076028,1769789443363,-1500.0,0.00017468,2]
[404076029,1769789443373,-1500.0,0.00017468,2]
[404076030,1769789443382,-1500.0,0.00017468,2]
[404076031,1769789443392,-1500.0,0.00017468,2]
[404076032,1769789443404,-206.11887871,0.00017468,2]
[404076033,1769789443413,-1000.73878486,0.00017468,2]
[404076034,1769789443423,-1500.0,0.00017468,2]
[404076035,1769789443433,-1514.0,0.00017522,2]
[404076036,1769789443443,-1389.0,0.00017557,2]
[404076037,1769789443453,-772.81,0.00017584,2]
[404076038,1769789443463,-500.0,0.00017587,2]
[404076039,1769789443473,-150.0,0.00017587,2]
[404076040,1769789443487,-958.0,0.00017592,2]
[404076041,1769789443496,-3325.66388888,0.00017593,2]
[404076042,1769789443506,-500.0,0.00017642,2]
[404076043,1769789443516,-1134.55,0.00017642,2]
[404076044,1769789443527,-500.0,0.00017642,2]
[404076045,1769789443537,-500.0,0.00017642,2]
[404076046,1769789443547,-150.0,0.00017642,2]
[404076047,1769789443557,-500.0,0.00017642,2]
[404076048,1769789443567,-500.0,0.00017642,2]
[404076049,1769789443576,-150.0,0.00017642,2]
[404076050,1769789443585,-500.0,0.00017642,2]
[404076051,1769789443595,-150.0,0.00017671,2]
[404076052,1769789443604,-500.0,0.00017671,2]
[404076053,1769789443614,-500.0,0.00017671,2]
[404076054,1769789443624,-500.0,0.00017671,2]
[404076055,1769789443635,-500.0,0.00017697,2]
[404076056,1769789443645,-500.0,0.00017697,2]
[404076057,1769789443655,-500.0,0.00017697,2]
[404076058,1769789443665,-500.0,0.00017697,2]
[404076059,1769789443675,-500.0,0.00017697,2]
[404076060,1769789443684,-500.0,0.00017697,2]
[404076061,1769789443694,-150.0,0.00017726,2]
[404076062,1769789443704,-500.0,0.00017726,2]
[404076063,1769789443714,-500.0,0.00017726,2]
[404076064,1769789443723,-500.0,0.00017726,2]
[404076065,1769789443733,-494.33434811,0.00017735,2]
[404076066,1769789443742,-500.0,0.00017751,2]
[404076067,1769789443752,-500.0,0.00017752,2]
[404076068,1769789443761,-500.0,0.00017752,2]
[404076069,1769789443771,-500.0,0.00017752,2]
[404076070,1769789443781,-500.0,0.00017752,2]
[404076071,1769789443791,-500.0,0.00017752,2]
[404076072,1769789443800,-377.0,0.00017754,2]
[404076073,1769789443810,-158.82094085,0.00017771,2]
[404076074,1769789443819,-500.0,0.00017781,2]
[404076075,1769789443829,-500.0,0.00017781,2]
[404076076,1769789443839,-500.0,0.00017781,2]
[404076077,1769789443849,-1000.0,0.000178,2]
[404076078,1769789443858,-5549.67507167,0.000178,2]
[404076079,1769789443870,-500.0,0.00017806,2]
[404076080,1769789443881,-500.0,0.00017806,2]
[404076081,1769789443891,-203.60967763,0.00017806,2]
[404076082,1769789443904,-500.0,0.00017806,2]
[404076083,1769789443913,-500.0,0.00017806,2]
[404076084,1769789443924,-500.0,0.00017806,2]
[404076085,1769789443933,-500.0,0.00017808,2]
[404076086,1769789443943,-377.0,0.00017809,2]
[404076087,1769789443952,-197.60329757,0.00017823,2]
[404076088,1769789443962,-109605.83836455,0.0001783,2]
[404076089,1769789443971,-500.0,0.00017835,2]
[404076090,1769789443980,-500.0,0.00017835,2]
[404076091,1769789443989,-500.0,0.00017835,2]
[404076092,1769789443998,-294.0,0.00017856,2]
[404076093,1769789444008,-772.81,0.00017858,2]
[404076094,1769789444017,-500.0,0.00017861,2]
[404076095,1769789444026,-500.0,0.00017861,2]
[404076096,1769789444036,-500.0,0.00017861,2]
[404076097,1769789444045,-500.0,0.00017861,2]
[404076098,1769789444054,-500.0,0.00017861,2]
[404076099,1769789444063,-500.0,0.00017863,2]
[404076100,1769789444072,-377.0,0.00017879,2]
[404076101,1769789444082,-377.0,0.00017887,2]
[404076102,1769789444092,-500.0,0.0001789,2]
[404076103,1769789444102,-500.0,0.0001789,2]
[404076104,1769789444111,-500.0,0.0001789,2]
[404076105,1769789444121,-377.0,0.00017895,2]
[404076106,1769789444130,-10000.0,0.000179,2]
[404076107,1769789444139,-235.48882472,0.000179,2]
[404076108,1769789444152,-165.50957456,0.000179,3]
[404076109,1769789444161,-8139.56044797,0.000179,2]
[404076110,1769789444247,-3325.66388888,0.000179,2]
[404076111,1769789444257,-5976.7815335,0.000179,2]
[404076112,1769789444267,-500.0,0.00017916,2]
[404076113,1769789444276,-500.0,0.00017916,2]
[404076115,1769789444286,-500.0,0.00017916,2]
[404076117,1769789444295,-500.0,0.00017916,2]
[404076119,1769789444304,-500.0,0.00017916,2]
[404076121,1769789444313,-1134.58649203,0.00017916,2]
[404076123,1769789444322,-500.0,0.00017918,2]
[404076125,1769789444332,-866.0,0.00017929,2]
[404076127,1769789444341,-377.0,0.00017935,2]
[404076129,1769789444350,-500.0,0.00017945,2]
[404076131,1769789444359,-500.0,0.00017945,2]
[404076133,1769789444368,-500.0,0.00017945,2]
[404076135,1769789444378,-239.8103178,0.00017971,2]
[404076137,1769789444387,-500.0,0.00017971,2]
[404076139,1769789444396,-268.77195069,0.00017971,2]
[404076141,1769789444406,-500.0,0.00017971,2]
[404076142,1769789444416,-215.78291863,0.00017971,2]
[404076143,1769789444425,-500.0,0.00017972,2]
[404076144,1769789444436,-500.0,0.00017973,2]
[404076145,1769789444446,-500.0,0.00017973,2]
[404076146,1769789444455,-333.51196878,0.00017973,2]
[404076147,1769789444465,-500.78976485,0.00017973,2]
[404076148,1769789444478,-500.0,0.00017973,2]
[404076149,1769789444488,-163.36858583,0.00017973,2]
[404076150,1769789444498,-500.0,0.00017973,2]
[404076151,1769789444507,-500.0,0.00017973,2]
[404076152,1769789444518,-500.0,0.00017973,2]
[404076153,1769789444527,-500.0,0.00017973,2]
[404076154,1769789444537,-500.0,0.00017973,2]
[404076155,1769789444547,-500.0,0.00017973,2]
[404076156,1769789444556,-175.57287607,0.00017973,2]
[404076157,1769789444566,-500.0,0.00017973,2]
[404076158,1769789444575,-151.06501544,0.00017973,2]
[404076159,1769789444585,-500.63516671,0.00017973,2]
[404076160,1769789444594,-500.0,0.00017973,2]
[404076161,1769789444603,-500.0,0.00017973,2]
[404076162,1769789444613,-500.0,0.00017973,2]
[404076163,1769789444622,-500.0,0.00017973,2]
[404076164,1769789444631,-500.2342072,0.00017973,2]
[404076165,1769789444641,-500.0,0.00017973,2]
[404076166,1769789444653,-500.0,0.00017973,2]
[404076167,1769789444663,-500.0,0.00017973,2]
[404076168,1769789444672,-500.0,0.00017973,2]
[404076169,1769789444681,-500.0,0.00017973,2]
[404076170,1769789444691,-500.0,0.00017973,2]
[404076171,1769789444701,-160.11295309,0.00017973,2]
[404076172,1769789444711,-208.33059439,0.00017973,2]
[404076173,1769789444720,-500.0,0.00017973,2]
[404076174,1769789444729,-432.02224032,0.00017973,2]
[404076175,1769789444739,-500.0,0.00017973,2]
[404076176,1769789444748,-160.13080306,0.00017973,2]
[404076177,1769789444758,-160.23001291,0.00017973,2]
[404076178,1769789444767,-500.0,0.00017973,2]
[404076179,1769789444776,-161.46714206,0.00017973,2]
[404076180,1769789444786,-501.03562757,0.00017973,2]
[404076181,1769789444795,-500.0,0.00017973,2]
[404076182,1769789444804,-340.31348241,0.00017973,2]
[404076183,1769789444813,-161.90727761,0.00017973,2]
[404076184,1769789444823,-161.13076084,0.00017973,2]
[404076185,1769789444832,-160.00319068,0.00017973,2]
[404076186,1769789444842,-500.0,0.00017973,2]
[404076187,1769789444851,-284.37159555,0.00017973,2]
[404076188,1769789444861,-500.0,0.00017973,2]
[404076189,1769789444870,-165.89161412,0.00017973,2]
[404076190,1769789444879,-164.73666016,0.00017973,2]
[404076191,1769789444888,-500.0,0.00017973,2]
[404076192,1769789444899,-500.29869688,0.00017973,2]
[404076193,1769789444908,-500.0,0.00017973,2]
[404076194,1769789444917,-500.0,0.00017973,2]
[404076195,1769789444926,-208.78313746,0.00017973,2]
[404076196,1769789444935,-500.0,0.00017973,2]
[404076197,1769789444945,-500.0,0.00017973,2]
[404076198,1769789444954,-150.0,0.00017973,2]
[404076199,1769789444963,-500.0,0.00017973,2]
[404076200,1769789444972,-500.0,0.00017973,2]
[404076201,1769789444981,-500.0,0.00017973,2]
[404076202,1769789444991,-500.0,0.00017973,2]
[404076203,1769789445000,-500.0,0.00017973,2]
[404076204,1769789445009,-158.22969695,0.00017973,2]
[404076205,1769789445018,-500.0,0.00017973,2]
[404076206,1769789445027,-210.27851574,0.00017973,2]
[404076207,1769789445036,-509.35254647,0.00017973,2]
[404076208,1769789445045,-500.0,0.00017973,2]
[404076209,1769789445053,-500.0,0.00017973,2]
[404076210,1769789445062,-162.64188199,0.00017973,2]
[404076211,1769789445071,-500.0,0.00017973,2]
[404076212,1769789445080,-500.0,0.00017973,2]
[404076213,1769789445089,-162.07893444,0.00017973,2]
[404076214,1769789445097,-500.0,0.00017973,2]
[404076215,1769789445107,-512.27368738,0.00017973,2]
[404076216,1769789445115,-500.0,0.00017973,2]
[404076217,1769789445124,-500.0,0.00017973,2]
[404076218,1769789445134,-500.0,0.00017973,2]
[404076219,1769789445143,-500.0,0.00017973,2]
[404076220,1769789445157,-500.0,0.00017973,2]
[404076221,1769789445167,-501.19732692,0.00017973,2]
[404076222,1769789445176,-500.0,0.00017973,2]
[404076223,1769789445185,-500.0,0.00017973,2]
[404076224,1769789445194,-500.42764262,0.00017973,2]
[404076225,1769789445203,-309.21369256,0.00017973,2]
[404076226,1769789445212,-500.0,0.00017982,2]
[404076227,1769789445222,-238.55707735,0.0001799,2]
[404076228,1769789445231,-238.55707735,0.0001799,2]
[404076229,1769789445241,-4328.2986706,0.00017997,2]
[404076230,1769789445250,-151.0,0.00017997,2]
[404076231,1769789445259,-500.0,0.00017998,2]
[404076232,1769789445269,-500.0,0.00017998,2]
[404076233,1769789445278,-500.0,0.00017998,2]
[404076234,1769789445287,-500.0,0.00017998,2]
[404076235,1769789445297,-500.0,0.00017998,2]
[404076236,1769789445306,-500.0,0.00017998,2]
[404076237,1769789445315,-500.0,0.00017998,2]
[404076238,1769789445324,-500.0,0.00017998,2]
[404076239,1769789445334,-500.0,0.00017998,2]
[404076240,1769789445344,-500.0,0.00017998,2]
[404076241,1769789445353,-500.0,0.00017998,2]
[404076242,1769789445363,-500.0,0.00017998,2]
[404076243,1769789445373,-500.0,0.00017998,2]
[404076244,1769789445383,-500.0,0.00017998,2]
[404076245,1769789445393,-500.0,0.00017998,2]
[404076246,1769789445406,-326.5559361,0.00017998,2]
[404076247,1769789445415,-150.0,0.00017999,2]
[404076248,1769789445425,-173.99288078,0.00017999,2]
[404076249,1769789445434,-112487.96496568,0.00017999,2]
[404076250,1769789445443,-300.0,0.00017999,2]
[404076251,1769789445452,-15859.3823265,0.00017999,2]
[404076252,1769789445461,-300.0,0.00017999,2]
[404076253,1769789445478,-2000.0,0.00017999,2]
[404076254,1769789445488,-500.0,0.00017999,2]
[404076255,1769789445497,-500.0,0.00017999,2]
[404076256,1769789445506,-500.0,0.00017999,2]
[404076257,1769789445517,-326.00819699,0.00017999,2]
[404076258,1769789445527,-300.0,0.00017999,2]
[404076259,1769789445536,-300.0,0.00017999,2]
[404076260,1769789445546,-666.0,0.00017999,2]
[404076261,1769789445558,-244.79656408,0.00017999,2]
[404076262,1769789445567,-300.0,0.00017999,2]
[404076263,1769789445576,-500.0,0.00017999,2]
[404076264,1769789445585,-500.0,0.00017999,2]
[404076265,1769789445595,-518.22564834,0.00017999,2]
[404076266,1769789445604,-500.0,0.00017999,2]
[404076267,1769789445613,-500.0,0.00017999,2]
[404076268,1769789445622,-500.0,0.00017999,2]
[404076269,1769789445632,-396.00925811,0.00017999,2]
[404076270,1769789445641,-300.0,0.00017999,2]
[404076271,1769789445654,-666.0,0.00017999,2]
[404076272,1769789445663,-500.0,0.00017999,2]
[404076273,1769789445673,-500.0,0.00017999,2]
[404076274,1769789445682,-500.0,0.00017999,2]
[404076275,1769789445692,-500.0,0.00017999,2]
[404076276,1769789445701,-500.0,0.00017999,2]
[404076277,1769789445711,-224.10392643,0.00017999,2]
[404076278,1769789445720,-300.0,0.00017999,2]
[404076279,1769789445730,-300.0,0.00017999,2]
[404076280,1769789445740,-500.0,0.00018,2]
[404076281,1769789445751,-500.0,0.00018,2]
[404076282,1769789445760,-500.0,0.00018,2]
[404076283,1769789445769,-2126038.47160516,0.00018,2]
[404076298,1769789446125,-999.9999999,0.00017183,2]
[404076313,1769789446425,-1536.99297283,0.00017183,2]
[404076314,1769789446537,-3427.50069161,0.000159,2]
[404076315,1769789446554,-2815.59710147,0.000159,2]
[404076316,1769789446567,-635.86310094,0.000159,2]
[404076317,1769789446610,-4105.95760231,0.000159,2]
[404076318,1769789446651,-1518.81597667,0.000159,2]
[404076323,1769789448566,-1739.49900692,0.000159,2]
[404076344,1769790450616,5532.0,0.000148,5]
[404076345,1769790450853,5532.0,0.000145,3]
[404076346,1769790463473,4432.63920088,0.00013,2]
[404076347,1769790482336,5532.0,0.000148,5]
[404076348,1769790482573,5532.0,0.000145,3]
[404076349,1769790545671,2339.0,0.000143,5]
[404076365,1769790631643,-816.23954548,0.000135,2]
[404076367,1769790631653,-261.0,0.000135,2]
[404076369,1769790631663,-1875.15,0.00014359,2]
[404076371,1769790631672,-1200.0,0.00014389,2]
[404076373,1769790631682,-3774.29045452,0.0001439,2]
[404076375,1769790631693,-6553.22438943,0.0001439,2]
[404076378,1769790631703,-892.81,0.00014426,2]
[404076379,1769790631712,-7104.46707261,0.00014427,2]
[404076382,1769790631723,-575.39949492,0.00014427,2]
[404076384,1769790631734,-822.10562034,0.00014427,2]
[404076420,1769790637749,-2281.17164681,0.00014427,2]
[404076427,1769790639664,-915.79616532,0.00014427,2]
[404076428,1769790639673,-1604.12,0.00014462,2]